fUSD/lending_fUSD_20240729
["ID","MTS","AMOUNT","RATE_DAILY","PERIOD"]
[333564522,1722249044611,-413.2,0.0001099,2]
[333564524,1722249044621,-500.0,0.0001099,2]
[333564525,1722249044631,-511.41325689,0.0001099,2]
[333564527,1722249044640,-500.0,0.0001099,2]
[333564529,1722249044651,-500.0,0.0001099,2]
[333564531,1722249044660,-500.0,0.0001099,2]
[333564533,1722249044670,-500.0,0.0001099,2]
[333564535,1722249044679,-504.15,0.0001099,2]
[333564537,1722249044689,-1800.63,0.0001099,2]
[333564539,1722249044699,-500.0,0.0001099,2]
[333564541,1722249044709,-500.0,0.0001099,2]
[333564543,1722249044718,-500.0,0.0001099,2]
[333564545,1722249044729,-500.0,0.0001099,2]
[333564547,1722249044738,-500.0,0.0001099,2]
[333564549,1722249044748,-500.0,0.0001099,2]
[333564551,1722249044757,-1421.54,0.0001099,2]
[333564553,1722249044767,-500.0,0.0001099,2]
[333564555,1722249044776,-500.0,0.0001099,2]
[333564556,1722249044786,-500.0,0.0001099,2]
[333564558,1722249044795,-500.0,0.0001099,2]
[333564560,1722249044805,-500.0,0.0001099,2]
[333564562,1722249044815,-500.0,0.0001099,2]
[333564564,1722249044825,-500.0,0.0001099,2]
[333564566,1722249044834,-500.0,0.0001099,2]
[333564568,1722249044844,-646.57,0.0001099,2]
[333564570,1722249044853,-517.29,0.0001099,2]
[333564572,1722249044863,-612.87039846,0.0001099,2]
[333564574,1722249044872,-381.68813109,0.0001099,2]
[333564576,1722249044882,-606.81,0.0001099,2]
[333564578,1722249044891,-639.55,0.0001099,2]
[333564580,1722249044901,-500.0,0.0001099,2]
[333564582,1722249044910,-506.54,0.0001099,2]
[333564583,1722249044920,-500.0,0.0001099,2]
[333564584,1722249044931,-202.69878787,0.0001099,2]
[333564585,1722249044941,-500.0,0.0001099,2]
[333564586,1722249044950,-500.0,0.0001099,2]
[333564587,1722249044960,-500.0,0.0001099,2]
[333564588,1722249044969,-500.0,0.0001099,2]
[333564589,1722249044980,-500.0,0.0001099,2]
[333564590,1722249044989,-500.0,0.0001099,2]
[333564591,1722249044999,-500.0,0.0001099,2]
[333564593,1722249045009,-2042.66,0.0001099,2]
[333564595,1722249045018,-500.0,0.0001099,2]
[333564597,1722249045028,-2239.06,0.0001099,2]
[333564599,1722249045038,-556.63,0.0001099,2]
[333564601,1722249045047,-1417.31,0.0001099,2]
[333564603,1722249045057,-500.0,0.0001099,2]
[333564605,1722249045066,-500.0,0.0001099,2]
[333564607,1722249045075,-328.33164857,0.0001099,2]
[333564609,1722249045085,-500.0,0.0001099,2]
[333564611,1722249045094,-910.37,0.0001099,2]
[333564613,1722249045104,-500.0,0.0001099,2]
[333564615,1722249045113,-500.0,0.0001099,2]
[333564617,1722249045122,-500.0,0.0001099,2]
[333564619,1722249045132,-500.0,0.0001099,2]
[333564621,1722249045141,-500.0,0.0001099,2]
[333564623,1722249045151,-500.0,0.0001099,2]
[333564625,1722249045161,-500.0,0.0001099,2]
[333564627,1722249045170,-500.0,0.0001099,2]
[333564629,1722249045179,-500.0,0.0001099,2]
[333564631,1722249045189,-576.6,0.0001099,2]
[333564633,1722249045199,-500.0,0.0001099,2]
[333564635,1722249045208,-500.0,0.0001099,2]
[333564636,1722249045218,-500.0,0.0001099,2]
[333564637,1722249045228,-500.0,0.0001099,2]
[333564638,1722249045237,-500.0,0.0001099,2]
[333564639,1722249045247,-500.0,0.0001099,2]
[333564640,1722249045257,-500.0,0.0001099,2]
[333564641,1722249045266,-307.73466417,0.0001099,2]
[333564642,1722249045275,-500.0,0.0001099,2]
[333564643,1722249045285,-500.0,0.0001099,2]
[333564644,1722249045295,-500.0,0.0001099,2]
[333564645,1722249045304,-500.0,0.0001099,2]
[333564646,1722249045314,-500.0,0.0001099,2]
[333564647,1722249045324,-500.0,0.0001099,2]
[333564648,1722249045333,-500.0,0.0001099,2]
[333564649,1722249045343,-500.0,0.0001099,2]
[333564650,1722249045352,-500.0,0.0001099,2]
[333564651,1722249045361,-502.68094126,0.0001099,2]
[333564652,1722249045370,-500.0,0.0001099,2]
[333564653,1722249045380,-500.0,0.0001099,2]
[333564654,1722249045389,-317.91,0.0001099,2]
[333564655,1722249045399,-247.14,0.0001099,2]
[333564656,1722249045408,-500.0,0.0001099,2]
[333564657,1722249045418,-500.0,0.0001099,2]
[333564658,1722249045427,-500.0,0.0001099,2]
[333564659,1722249045436,-500.0,0.0001099,2]
[333564660,1722249045445,-500.0,0.0001099,2]
[333564661,1722249045454,-500.0,0.0001099,2]
[333564662,1722249045465,-160.6934963,0.0001099,2]
[333564663,1722249045478,-500.0,0.0001099,2]
[333564664,1722249045488,-500.0,0.0001099,2]
[333564665,1722249045497,-518.2201222,0.0001099,2]
[333564666,1722249045507,-500.0,0.0001099,2]
[333564667,1722249045516,-2596.56,0.0001099,2]
[333564668,1722249045525,-500.0,0.0001099,2]
[333564669,1722249045535,-600.59628054,0.0001099,2]
[333564670,1722249045545,-500.0,0.0001099,2]
[333564671,1722249045555,-500.0,0.0001099,2]
[333564672,1722249045564,-500.0,0.0001099,2]
[333564674,1722249045573,-500.0,0.0001099,2]
[333564675,1722249045583,-500.0,0.0001099,2]
[333564676,1722249045592,-519.72,0.0001099,2]
[333564677,1722249045601,-500.0,0.0001099,2]
[333564678,1722249045610,-500.0,0.0001099,2]
[333564679,1722249045620,-500.0,0.0001099,2]
[333564680,1722249045629,-500.0,0.0001099,2]
[333564681,1722249045639,-500.0,0.0001099,2]
[333564682,1722249045650,-500.0,0.0001099,2]
[333564683,1722249045659,-500.0,0.0001099,2]
[333564684,1722249045669,-500.0,0.0001099,2]
[333564685,1722249045680,-500.0,0.0001099,2]
[333564686,1722249045690,-500.0,0.0001099,2]
[333564687,1722249045700,-500.0,0.0001099,2]
[333564688,1722249045710,-500.0,0.0001099,2]
[333564689,1722249045720,-1429.35,0.0001099,2]
[333564690,1722249045730,-1265.26,0.0001099,2]
[333564691,1722249045739,-530.40017171,0.0001099,2]
[333564692,1722249045749,-500.0,0.0001099,2]
[333564693,1722249045758,-500.0,0.0001099,2]
[333564694,1722249045768,-500.0,0.0001099,2]
[333564695,1722249045777,-500.0,0.0001099,2]
[333564696,1722249045787,-500.0,0.0001099,2]
[333564697,1722249045796,-500.0,0.0001099,2]
[333564698,1722249045806,-500.0,0.0001099,2]
[333564699,1722249045816,-214.41,0.0001099,2]
[333564700,1722249045825,-500.0,0.0001099,2]
[333564701,1722249045836,-500.0,0.0001099,2]
[333564702,1722249045845,-500.0,0.0001099,2]
[333564703,1722249045855,-500.0,0.0001099,2]
[333564704,1722249045865,-500.0,0.0001099,2]
[333564705,1722249045874,-500.0,0.0001099,2]
[333564706,1722249045884,-1200.01,0.0001099,2]
[333564707,1722249045894,-500.0,0.0001099,2]
[333564708,1722249045904,-500.0,0.0001099,2]
[333564709,1722249045914,-500.0,0.00010991,2]
[333564711,1722249045923,-500.0,0.00010991,2]
[333564713,1722249045933,-500.0,0.00010991,2]
[333564715,1722249045943,-500.0,0.00010991,2]
[333564716,1722249045952,-500.0,0.00010991,2]
[333564717,1722249045962,-500.0,0.00010991,2]
[333564718,1722249045972,-500.0,0.00010991,2]
[333564719,1722249045981,-504.15,0.00010991,2]
[333564720,1722249045991,-510.87433701,0.00010991,2]
[333564721,1722249046000,-504.15,0.00010991,2]
[333564722,1722249046010,-1800.63,0.00010991,2]
[333564723,1722249046019,-500.0,0.00010991,2]
[333564724,1722249046029,-504.75079075,0.00010991,2]
[333564725,1722249046039,-500.0,0.00010991,2]
[333564726,1722249046049,-523.96709346,0.00010991,2]
[333564727,1722249046059,-531.055,0.00010991,2]
[333564728,1722249046068,-500.0,0.00010991,2]
[333564729,1722249046077,-500.0,0.00010991,2]
[333564730,1722249046087,-500.0,0.00010991,2]
[333564732,1722249046097,-507.81424166,0.00010991,2]
[333564735,1722249046107,-500.0,0.00010991,2]
[333564738,1722249046117,-1421.54,0.00010991,2]
[333564739,1722249046127,-500.0,0.00010991,2]
[333564741,1722249046137,-503.50536629,0.00010991,2]
[333564742,1722249046148,-500.0,0.00010991,2]
[333564743,1722249046158,-501.25145604,0.00010991,2]
[333564744,1722249046168,-500.0,0.00010991,2]
[333564746,1722249046178,-500.0,0.00010991,2]
[333564747,1722249046188,-503.02702932,0.00010991,2]
[333564748,1722249046198,-500.0,0.00010991,2]
[333564749,1722249046208,-500.0,0.00010991,2]
[333564750,1722249046217,-500.0,0.00010991,2]
[333564752,1722249046226,-504.91211378,0.00010991,2]
[333564753,1722249046236,-500.0,0.00010991,2]
[333564755,1722249046245,-502.01461985,0.00010991,2]
[333564757,1722249046255,-646.57,0.00010991,2]
[333564759,1722249046264,-646.57,0.00010991,2]
[333564760,1722249046273,-517.29,0.00010991,2]
[333564762,1722249046283,-517.29,0.00010991,2]
[333564764,1722249046292,-606.81,0.00010991,2]
[333564766,1722249046302,-606.81,0.00010991,2]
[333564767,1722249046311,-639.55,0.00010991,2]
[333564768,1722249046320,-639.55,0.00010991,2]
[333564769,1722249046330,-500.0,0.00010991,2]
[333564770,1722249046339,-500.0,0.00010991,2]
[333564771,1722249046348,-500.0,0.00010991,2]
[333564772,1722249046358,-500.0,0.00010991,2]
[333564773,1722249046367,-500.0,0.00010991,2]
[333564774,1722249046376,-500.0,0.00010991,2]
[333564775,1722249046386,-500.0,0.00010991,2]
[333564776,1722249046397,-500.0,0.00010991,2]
[333564777,1722249046406,-500.0,0.00010991,2]
[333564778,1722249046415,-500.0,0.00010991,2]
[333564779,1722249046425,-2042.66,0.00010991,2]
[333564780,1722249046434,-2239.06,0.00010991,2]
[333564781,1722249046443,-556.63,0.00010991,2]
[333564782,1722249046453,-556.63,0.00010991,2]
[333564783,1722249046462,-1417.31,0.00010991,2]
[333564784,1722249046471,-500.0,0.00010991,2]
[333564785,1722249046484,-500.0,0.00010991,2]
[333564786,1722249046493,-500.0,0.00010991,2]
[333564787,1722249046503,-910.37,0.00010991,2]
[333564788,1722249046512,-500.0,0.00010991,2]
[333564789,1722249046522,-500.0,0.00010991,2]
[333564790,1722249046532,-394.59036339,0.00010991,2]
[333564791,1722249046541,-500.0,0.00010991,2]
[333564792,1722249046551,-500.0,0.00010991,2]
[333564793,1722249046560,-500.0,0.00010991,2]
[333564794,1722249046570,-774.1927338,0.00010991,2]
[333564795,1722249046579,-500.0,0.00010991,2]
[333564796,1722249046588,-500.0,0.00010991,2]
[333564797,1722249046598,-500.0,0.00010991,2]
[333564798,1722249046607,-500.0,0.00010991,2]
[333564799,1722249046617,-576.6,0.00010991,2]
[333564800,1722249046626,-500.0,0.00010991,2]
[333564801,1722249046635,-500.0,0.00010991,2]
[333564802,1722249046646,-500.0,0.00010991,2]
[333564803,1722249046656,-500.0,0.00010991,2]
[333564804,1722249046666,-500.0,0.00010991,2]
[333564805,1722249046675,-500.0,0.00010991,2]
[333564806,1722249046685,-500.0,0.00010991,2]
[333564807,1722249046695,-500.0,0.00010991,2]
[333564808,1722249046704,-500.0,0.00010991,2]
[333564809,1722249046713,-500.0,0.00010991,2]
[333564810,1722249046723,-500.0,0.00010991,2]
[333564811,1722249046732,-500.0,0.00010991,2]
[333564812,1722249046741,-500.0,0.00010991,2]
[333564813,1722249046751,-500.0,0.00010991,2]
[333564814,1722249046760,-500.0,0.00010991,2]
[333564815,1722249046769,-500.0,0.00010991,2]
[333564816,1722249046778,-500.0,0.00010991,2]
[333564817,1722249046787,-503.70000638,0.00010991,2]
[333564818,1722249046994,-6818.6014854,0.00010991,2]
[333564819,1722249047004,-500.0,0.00010991,2]
[333564820,1722249047014,-500.0,0.00010991,2]
[333564821,1722249047023,-500.0,0.00010991,2]
[333564822,1722249047032,-500.0,0.00010991,2]
[333564823,1722249047041,-507.3977903,0.00010991,2]
[333564824,1722249047051,-514.09186693,0.00010991,2]
[333564825,1722249047060,-500.0,0.00010991,2]
[333564826,1722249047069,-500.0,0.00010991,2]
[333564827,1722249047079,-500.0,0.00010991,2]
[333564828,1722249047088,-500.0,0.00010991,2]
[333564829,1722249047097,-500.0,0.00010991,2]
[333564830,1722249047107,-500.0,0.00010991,2]
[333564831,1722249047116,-500.0,0.00010991,2]
[333564832,1722249047125,-523.99983077,0.00010991,2]
[333564833,1722249047135,-500.0,0.00010991,2]
[333564834,1722249047144,-500.0,0.00010991,2]
[333564835,1722249047154,-500.0,0.00010991,2]
[333564836,1722249047164,-632.65317572,0.00010991,2]
[333564837,1722249047173,-500.0,0.00010991,2]
[333564838,1722249047182,-2596.56,0.00010991,2]
[333564839,1722249047191,-500.0,0.00010991,2]
[333564840,1722249047201,-500.0,0.00010991,2]
[333564841,1722249047211,-500.0,0.00010991,2]
[333564842,1722249047221,-500.0,0.00010991,2]
[333564843,1722249047230,-500.0,0.00010991,2]
[333564844,1722249047239,-500.0,0.00010991,2]
[333564845,1722249047248,-526.32307659,0.00010991,2]
[333564846,1722249047258,-500.0,0.00010991,2]
[333564847,1722249047267,-12131.8001841,0.00010991,2]
[333564848,1722249047277,-500.0,0.00010991,2]
[333564849,1722249047287,-500.0,0.00010991,2]
[333564850,1722249047297,-500.0,0.00010991,2]
[333564851,1722249047305,-500.0,0.00010991,2]
[333564852,1722249047315,-500.0,0.00010991,2]
[333564853,1722249047324,-3423.5405953,0.00010991,2]
[333564854,1722249047333,-500.0,0.00010991,2]
[333564855,1722249047343,-500.0,0.00010991,2]
[333564856,1722249047352,-611.5636356,0.00010991,2]
[333564857,1722249047362,-500.0,0.00010991,2]
[333564858,1722249047371,-500.0,0.00010991,2]
[333564859,1722249047381,-500.0,0.00010991,2]
[333564860,1722249047390,-500.0,0.00010991,2]
[333564861,1722249047400,-500.0,0.00010991,2]
[333564862,1722249047409,-500.0,0.00010991,2]
[333564863,1722249047419,-500.0,0.00010991,2]
[333564864,1722249047428,-500.0,0.00010991,2]
[333564865,1722249047437,-500.0,0.00010991,2]
[333564866,1722249047447,-1265.26,0.00010991,2]
[333564867,1722249047456,-500.0,0.00010991,2]
[333564868,1722249047466,-500.0,0.00010991,2]
[333564869,1722249047476,-500.0,0.00010991,2]
[333564870,1722249047489,-1504.0879187,0.00010991,2]
[333564871,1722249047498,-187.1109755,0.00010991,2]
[333564872,1722249047508,-350.7,0.00010991,2]
[333564873,1722249047517,-504.24,0.00010991,2]
[333564874,1722249047527,-564.25,0.00010991,2]
[333564875,1722249047540,-500.0,0.00010991,2]
[333564876,1722249047549,-500.0,0.00010991,2]
[333564877,1722249047559,-1368.87,0.00010991,2]
[333564878,1722249047569,-119.34946649,0.00010991,2]
[333564879,1722249048359,-250.0,0.00010959,2]
[333564880,1722249048368,-380.65053351,0.00010991,2]
[333564881,1722249048378,-654.4549763,0.00010992,2]
[333564882,1722249048387,-534.7172188,0.00010992,2]
[333564883,1722249048397,-414.9794614,0.00010992,2]
[333564884,1722249048407,-295.2417039,0.00010992,2]
[333564885,1722249048416,-2770.28917975,0.00010992,2]
[333564886,1722249048785,-338.27285035,0.00010992,2]
[333564887,1722249048800,-669.58337309,0.00010992,2]
[333564888,1722249048817,-269.24,0.00010992,2]
[333564889,1722249048835,-500.0,0.00010958,2]
[333564890,1722249048844,-1716.64140691,0.00010992,2]
[333564891,1722249048854,-4709.4521348,0.00010992,2]
[333564892,1722249048864,-3654.8774596,0.00010992,2]
[333564893,1722249048874,-2600.3027843,0.00010992,2]
[333564894,1722249048883,-10255.4785854,0.00010992,2]
[333564895,1722249048893,-8379.1569868,0.00010992,2]
[333564896,1722249048904,-6502.8353881,0.00010992,2]
[333564897,1722249048913,-4626.5137895,0.00010992,2]
[333564898,1722249048923,-2891.9952812,0.00010992,2]
[333564899,1722249048935,-2360.449967,0.00010992,2]
[333564900,1722249048944,-1828.9046528,0.00010992,2]
[333564901,1722249048953,-1297.3593386,0.00010992,2]
[333564902,1722249048962,-1407.4344261,0.00010992,2]
[333564903,1722249048972,-1310.7809335,0.00010992,2]
[333564904,1722249048981,-1214.127441,0.00010992,2]
[333564905,1722249048990,-1117.4739484,0.00010992,2]
[333564906,1722249049000,-500.0,0.00010995,2]
[333564907,1722249049009,-1583.92,0.00010995,2]
[333564908,1722249049018,-2215.54,0.00010995,2]
[333564909,1722249049028,-5947.62042323,0.00010996,2]
[333564910,1722249049038,-210.60517925,0.00010996,2]
[333564911,1722249049048,-192.92,0.00010996,2]
[333564912,1722249049057,-504.15,0.00010996,2]
[333564913,1722249049068,-1800.63,0.00010996,2]
[333564914,1722249049078,-1800.63,0.00010996,2]
[333564915,1722249049088,-500.0,0.00010996,2]
[333564916,1722249049097,-500.0,0.00010996,2]
[333564917,1722249049107,-500.0,0.00010996,2]
[333564918,1722249049117,-1421.54,0.00010996,2]
[333564919,1722249049126,-1421.54,0.00010996,2]
[333564920,1722249049136,-500.0,0.00010996,2]
[333564921,1722249049145,-500.0,0.00010996,2]
[333564922,1722249049155,-480.04,0.00010996,2]
[333564923,1722249049166,-397.52849714,0.00010996,2]
[333564924,1722249049175,-646.57,0.00010996,2]
[333564925,1722249049185,-517.29,0.00010996,2]
[333564926,1722249049195,-606.81,0.00010996,2]
[333564927,1722249049205,-639.55,0.00010996,2]
[333564928,1722249049214,-500.0,0.00010996,2]
[333564929,1722249049223,-500.0,0.00010996,2]
[333564930,1722249049233,-500.0,0.00010996,2]
[333564931,1722249049243,-523.94383971,0.00010996,2]
[333564932,1722249049252,-500.0,0.00010996,2]
[333564933,1722249049262,-500.0,0.00010996,2]
[333564934,1722249049271,-500.0,0.00010996,2]
[333564935,1722249049281,-500.0,0.00010996,2]
[333564936,1722249049290,-500.0,0.00010996,2]
[333564937,1722249049300,-500.0,0.00010996,2]
[333564938,1722249049309,-2042.66,0.00010996,2]
[333564939,1722249049319,-2042.66,0.00010996,2]
[333564940,1722249049329,-500.0,0.00010996,2]
[333564941,1722249049338,-507.42421624,0.00010996,2]
[333564942,1722249049348,-2239.06,0.00010996,2]
[333564943,1722249049358,-2239.06,0.00010996,2]
[333564944,1722249049368,-556.63,0.00010996,2]
[333564945,1722249049377,-1417.31,0.00010996,2]
[333564946,1722249049387,-1417.31,0.00010996,2]
[333564947,1722249049397,-500.0,0.00010996,2]
[333564948,1722249049407,-500.0,0.00010996,2]
[333564949,1722249049417,-503.84337399,0.00010996,2]
[333564950,1722249049427,-500.0,0.00010996,2]
[333564951,1722249049436,-511.35994627,0.00010996,2]
[333564952,1722249049445,-910.37,0.00010996,2]
[333564953,1722249049454,-910.37,0.00010996,2]
[333564954,1722249049463,-500.0,0.00010996,2]
[333564955,1722249049476,-500.0,0.00010996,2]
[333564956,1722249049486,-500.0,0.00010996,2]
[333564957,1722249049495,-500.0,0.00010996,2]
[333564958,1722249049504,-500.0,0.00010996,2]
[333564959,1722249049514,-500.0,0.00010996,2]
[333564960,1722249049523,-500.0,0.00010996,2]
[333564961,1722249049532,-500.0,0.00010996,2]
[333564962,1722249049542,-500.0,0.00010996,2]
[333564963,1722249049554,-500.0,0.00010996,2]
[333564964,1722249049563,-500.0,0.00010996,2]
[333564965,1722249049630,-500.0,0.00010996,2]
[333564966,1722249049641,-576.6,0.00010996,2]
[333564967,1722249049650,-576.6,0.00010996,2]
[333564968,1722249049659,-500.0,0.00010996,2]
[333564969,1722249049668,-500.0,0.00010996,2]
[333564970,1722249049677,-274.88,0.00010996,2]
[333564971,1722249049686,-325.85,0.00010996,2]
[333564972,1722249049695,-500.0,0.00010996,2]
[333564973,1722249049705,-500.0,0.00010996,2]
[333564974,1722249049714,-500.0,0.00010996,2]
[333564975,1722249049724,-500.0,0.00010996,2]
[333564976,1722249049733,-500.0,0.00010996,2]
[333564977,1722249049742,-500.0,0.00010996,2]
[333564978,1722249049752,-500.0,0.00010996,2]
[333564979,1722249049761,-500.0,0.00010996,2]
[333564980,1722249049771,-500.0,0.00010996,2]
[333564981,1722249049780,-583.54193621,0.00010996,2]
[333564982,1722249049789,-248.94434392,0.00010996,2]
[333564983,1722249049811,-254.0897799,0.00010996,2]
[333564984,1722249049820,-500.0,0.00010996,2]
[333564985,1722249049830,-500.0,0.00010996,2]
[333564986,1722249049839,-500.0,0.00010996,2]
[333564987,1722249049848,-500.0,0.00010996,2]
[333564988,1722249049858,-500.0,0.00010996,2]
[333564989,1722249049867,-621.65632517,0.00010996,2]
[333564990,1722249091397,150.0,0.00016357,120]
[333565109,1722250169714,200.0,0.00017,60]
[333565145,1722250232078,-357.21,8.219e-05,2]
[333565147,1722250232087,-342.79,9.441e-05,2]
[333565149,1722250233265,-787.72537109,9.441e-05,2]
[333565155,1722250233595,-753.09403611,9.441e-05,2]
[333565160,1722250233634,-426.3605928,9.441e-05,2]
[333565162,1722250233644,-18.74226889,9.464e-05,2]
[333565164,1722250233655,-1833.67773111,9.464e-05,2]
[333565166,1722250233665,-4285.64,9.468e-05,2]
[333565167,1722250233675,-160.0,9.492e-05,2]
[333565168,1722250233685,-2000.0,9.503e-05,2]
[333565169,1722250233695,-250.0,9.512e-05,2]
[333565170,1722250233705,-9229.14,9.52e-05,2]
[333565171,1722250233715,-500.0,9.525e-05,2]
[333565172,1722250233724,-2706.81,9.532e-05,2]
[333565173,1722250233734,-277.79,9.538e-05,2]
[333565174,1722250233743,-411.62,9.739e-05,2]
[333565175,1722250233752,-411.62,9.742e-05,2]
[333565176,1722250233762,-411.62,9.745e-05,2]
[333565177,1722250233771,-411.62,9.747e-05,2]
[333565178,1722250233780,-411.62,9.75e-05,2]
[333565179,1722250233790,-411.62,9.752e-05,2]
[333565180,1722250233799,-411.62,9.755e-05,2]
[333565181,1722250233809,-411.62,9.757e-05,2]
[333565182,1722250233818,-411.62,9.76e-05,2]
[333565183,1722250233828,-411.62,9.763e-05,2]
[333565184,1722250233837,-411.62,9.765e-05,2]
[333565185,1722250233848,-411.62,9.768e-05,2]
[333565186,1722250233859,-411.62,9.77e-05,2]
[333565187,1722250233869,-411.62,9.773e-05,2]
[333565188,1722250233878,-150.0,9.775e-05,2]
[333565189,1722250233888,-411.62,9.775e-05,2]
[333565190,1722250233898,-411.62,9.778e-05,2]
[333565191,1722250233907,-411.62,9.781e-05,2]
[333565192,1722250233916,-411.62,9.783e-05,2]
[333565193,1722250233927,-411.62,9.786e-05,2]
[333565194,1722250233937,-411.62,9.788e-05,2]
[333565195,1722250233947,-840.0,9.804e-05,2]
[333565196,1722250233956,-1468.7,9.876e-05,2]
[333565197,1722250233966,-150.66623924,9.888e-05,2]
[333565198,1722250233976,-200.0,9.9e-05,3]
[333565199,1722250233985,-1250.0,0.0001,2]
[333565200,1722250233994,-500.0,0.0001,3]
[333565201,1722250234004,-839.03,0.00010055,2]
[333565202,1722250234014,-800.0,0.000101,3]
[333565203,1722250234024,-355.99,0.00010192,2]
[333565204,1722250234034,-150.0,0.00010192,2]
[333565205,1722250234044,-150.0,0.00010192,2]
[333565206,1722250234054,-1052.66,0.00010192,2]
[333565207,1722250234064,-1100.0,0.000102,3]
[333565208,1722250234074,-1300.0,0.000103,3]
[333565209,1722250234084,-200.0,0.000104,3]
[333565210,1722250234093,-357.21,0.00010449,2]
[333565211,1722250234103,-200.0,0.000105,3]
[333565212,1722250234113,-200.0,0.000106,3]
[333565213,1722250234123,-150.0,0.00010633,2]
[333565214,1722250234133,-150.0,0.0001066,2]
[333565215,1722250234143,-150.0,0.00010662,2]
[333565216,1722250234152,-150.0,0.00010664,2]
[333565217,1722250234161,-160.0,0.00010678,2]
[333565218,1722250234171,-337.46431487,0.0001069,2]
[333565219,1722250234183,-150.0,0.00010691,2]
[333565220,1722250234192,-785.20134825,0.00010699,2]
[333565221,1722250234202,-150.0,0.00010699,2]
[333565222,1722250234211,-22499.2934,0.000107,2]
[333565223,1722250234221,-200.0,0.000107,3]
[333565224,1722250234231,-150.0,0.00010704,2]
[333565225,1722250234241,-150.0,0.00010724,2]
[333565226,1722250234250,-150.0,0.00010728,2]
[333565227,1722250234260,-150.0,0.00010729,2]
[333565228,1722250234270,-150.0,0.00010731,2]
[333565229,1722250234279,-150.0,0.00010753,2]
[333565230,1722250234288,-150.0,0.00010758,2]
[333565231,1722250234298,-150.0,0.0001076,2]
[333565232,1722250234307,-150.0,0.00010769,2]
[333565233,1722250234316,-150.0,0.00010769,2]
[333565234,1722250234325,-150.0,0.0001077,2]
[333565235,1722250234334,-150.0,0.00010773,2]
[333565236,1722250234344,-150.0,0.00010779,2]
[333565237,1722250234353,-150.0,0.00010789,2]
[333565238,1722250234362,-150.0,0.00010796,2]
[333565239,1722250234372,-150.0,0.00010798,2]
[333565240,1722250234381,-800.0,0.000108,3]
[333565241,1722250234390,-150.0,0.00010804,2]
[333565242,1722250234400,-150.0,0.0001081,2]
[333565243,1722250234409,-150.0,0.0001082,2]
[333565244,1722250234419,-150.0,0.00010823,2]
[333565245,1722250234430,-150.0,0.00010835,2]
[333565246,1722250234439,-150.0,0.00010839,2]
[333565247,1722250234449,-150.0,0.00010842,2]
[333565248,1722250234458,-255.20930379,0.0001085,2]
[333565249,1722250234468,-150.0,0.00010855,2]
[333565250,1722250234478,-3103.9289,0.00010858,2]
[333565251,1722250234488,-2429.9035,0.00010858,2]
[333565252,1722250234498,-26556.4543,0.00010858,2]
[333565253,1722250234508,-150.0,0.00010869,2]
[333565254,1722250234518,-150.0,0.00010879,2]
[333565255,1722250234527,-150.0,0.00010886,2]
[333565256,1722250234537,-2647.4202,0.00010889,2]
[333565257,1722250234546,-150.0,0.00010894,2]